[Event "*** Titled Tuesday Blitz"]
[Site "Chess.com"]
[Date "2021.04.20"]
[Round "8"]
[White "bricolageur"]
[Black "elextranjero00"]
[Result "1/2-1/2"]
[WhiteElo "2381"]
[BlackElo "2568"]
[TimeControl "180+1"]
[EndTime "11:27:14 PDT"]
[Termination "Game drawn by repetition"]

1. e4 {[%clk 0:03:00.9]} 1... e6 {[%clk 0:02:59.4]} 2. d4 {[%clk 0:03:00.9]}
2... d5 {[%clk 0:02:59.5]} 3. Nc3 {[%clk 0:03:01.6]} 3... Nf6 {[%clk 0:02:56.5]}
4. e5 {[%clk 0:03:02.1]} 4... Nfd7 {[%clk 0:02:56.8]} 5. Nce2 {[%clk 0:03:01.7]}
5... c5 {[%clk 0:02:53.9]} 6. c3 {[%clk 0:03:02.2]} 6... Nc6 {[%clk 0:02:53.5]}
7. f4 {[%clk 0:03:02.2]} 7... cxd4 {[%clk 0:02:51.2]} 8. cxd4 {[%clk 0:03:03.1]}
8... f5 {[%clk 0:02:51.5]} 9. Nf3 {[%clk 0:02:59.4]} 9... Be7 {[%clk 0:02:50]}
10. Be3 {[%clk 0:02:55.6]} 10... Nb6 {[%clk 0:02:49.3]} 11. Nc3 {[%clk
0:02:53.8]} 11... O-O {[%clk 0:02:49.1]} 12. Bd3 {[%clk 0:02:52.1]} 12... Bd7
{[%clk 0:02:49.3]} 13. O-O {[%clk 0:02:51.2]} 13... Be8 {[%clk 0:02:49.4]} 14.
Nd2 {[%clk 0:02:48.3]} 14... Rc8 {[%clk 0:02:48.8]} 15. Rc1 {[%clk 0:02:34.3]}
15... Nb4 {[%clk 0:02:38.5]} 16. Be2 {[%clk 0:02:28.8]} 16... Nc4 {[%clk
0:02:30.6]} 17. Nxc4 {[%clk 0:02:25.4]} 17... dxc4 {[%clk 0:02:30.6]} 18. a3
{[%clk 0:02:24.6]} 18... Nd5 {[%clk 0:02:21.1]} 19. Nxd5 {[%clk 0:02:24.7]}
19... exd5 {[%clk 0:02:21.1]} 20. g4 {[%clk 0:02:16.2]} 20... Bg6 {[%clk
0:02:16.2]} 21. g5 {[%clk 0:02:09.2]} 21... b5 {[%clk 0:02:09.3]} 22. h4 {[%clk
0:02:08.1]} 22... Bf7 {[%clk 0:02:09.4]} 23. h5 {[%clk 0:02:07.1]} 23... Be6
{[%clk 0:02:04.3]} 24. Bf3 {[%clk 0:02:05.8]} 24... a5 {[%clk 0:01:57.7]} 25.
Rf2 {[%clk 0:02:05.7]} 25... Qd7 {[%clk 0:01:53.3]} 26. Qf1 {[%clk 0:02:02]}
26... b4 {[%clk 0:01:51.1]} 27. axb4 {[%clk 0:02:02.3]} 27... axb4 {[%clk
0:01:51.9]} 28. Ra1 {[%clk 0:02:01.4]} 28... Ra8 {[%clk 0:01:50.6]} 29. Rc2
{[%clk 0:01:59]} 29... Rxa1 {[%clk 0:01:04]} 30. Qxa1 {[%clk 0:01:57]} 30... b3
{[%clk 0:01:04.6]} 31. Rc1 {[%clk 0:01:49.4]} 31... Bd8 {[%clk 0:00:54.8]} 32.
Qa6 {[%clk 0:01:42.5]} 32... Bc7 {[%clk 0:00:49.4]} 33. Bd2 {[%clk 0:01:18.1]}
33... Rb8 {[%clk 0:00:49]} 34. Ra1 {[%clk 0:01:13.9]} 34... Bb6 {[%clk
0:00:42.7]} 35. Bc3 {[%clk 0:01:01.6]} 35... Qc6 {[%clk 0:00:35.3]} 36. Kf2
{[%clk 0:00:49.1]} 36... Qc7 {[%clk 0:00:29.4]} 37. Ke3 {[%clk 0:00:37.2]} 37...
Kh8 {[%clk 0:00:28]} 38. Qa4 {[%clk 0:00:09.5]} 38... Bd7 {[%clk 0:00:16.4]} 39.
Qa3 {[%clk 0:00:09.2]} 39... Bc6 {[%clk 0:00:14.9]} 40. Qa6 {[%clk 0:00:06]}
40... Kg8 {[%clk 0:00:12.7]} 41. Qa3 {[%clk 0:00:06]} 41... Qb7 {[%clk
0:00:06.4]} 42. Qa6 {[%clk 0:00:05.5]} 42... Qc7 {[%clk 0:00:04.5]} 43. Qa3
{[%clk 0:00:05.4]} 43... Qb7 {[%clk 0:00:04.2]} 44. Qa6 {[%clk 0:00:05.4]} 44...
Qc7 {[%clk 0:00:04.7]} 1/2-1/2

[Event "*** Titled Tuesday Blitz"]
[Site "Chess.com"]
[Date "2021.04.20"]
[Round "8"]
[White "poneis_malditos"]
[Black "Taktikmonster"]
[Result "0-1"]
[WhiteElo "2262"]
[BlackElo "2414"]
[TimeControl "180+1"]
[EndTime "11:27:16 PDT"]
[Termination "Taktikmonster won by resignation"]

1. e4 {[%clk 0:03:00.9]} 1... c5 {[%clk 0:02:53.2]} 2. Nc3 {[%clk 0:03:01.3]}
2... Nc6 {[%clk 0:02:52.4]} 3. g3 {[%clk 0:03:01.9]} 3... g6 {[%clk 0:02:52.4]}
4. Bg2 {[%clk 0:03:02.8]} 4... Bg7 {[%clk 0:02:53.3]} 5. d3 {[%clk 0:03:03]}
5... e6 {[%clk 0:02:53.6]} 6. Be3 {[%clk 0:03:03.6]} 6... b6 {[%clk 0:02:53.9]}
7. Qd2 {[%clk 0:03:03.9]} 7... Nge7 {[%clk 0:02:54.3]} 8. Bh6 {[%clk 0:03:04.1]}
8... Bxh6 {[%clk 0:02:28.9]} 9. Qxh6 {[%clk 0:03:05]} 9... Ng8 {[%clk
0:02:29.5]} 10. Qg7 {[%clk 0:02:31.4]} 10... Qf6 {[%clk 0:02:28.1]} 11. Qxf6
{[%clk 0:02:29.7]} 11... Nxf6 {[%clk 0:02:29]} 12. e5 {[%clk 0:02:25.2]} 12...
Ng4 {[%clk 0:02:27.6]} 13. Nb5 {[%clk 0:02:21.7]} 13... Ke7 {[%clk 0:02:18.9]}
14. f4 {[%clk 0:02:20.5]} 14... Ne3 {[%clk 0:02:18.4]} 15. Kf2 {[%clk
0:02:07.4]} 15... Nxc2 {[%clk 0:02:16.2]} 16. Rc1 {[%clk 0:02:03.8]} 16... N2b4
{[%clk 0:02:11.4]} 17. Ke3 {[%clk 0:01:59.2]} 17... Nxa2 {[%clk 0:02:00.3]} 18.
Ra1 {[%clk 0:01:58.5]} 18... Nab4 {[%clk 0:01:57.5]} 19. Ne2 {[%clk 0:01:54.8]}
19... Nc2+ {[%clk 0:01:55.9]} 20. Kd2 {[%clk 0:01:52.4]} 20... Nxa1 {[%clk
0:01:56.5]} 21. Rxa1 {[%clk 0:01:52.7]} 21... Bb7 {[%clk 0:01:49.7]} 22. Nd6
{[%clk 0:01:52.9]} 22... Rhb8 {[%clk 0:01:47.6]} 23. Nc3 {[%clk 0:01:52.4]}
23... Na5 {[%clk 0:01:43.1]} 24. Rxa5 {[%clk 0:01:24.3]} 24... Bxg2 {[%clk
0:01:33.6]} 25. Ra1 {[%clk 0:01:24.3]} 25... Bd5 {[%clk 0:01:31.9]} 26. Ncb5
{[%clk 0:01:19.4]} 26... h5 {[%clk 0:01:16]} 27. Nc7 {[%clk 0:01:17]} 27... f6
{[%clk 0:01:13.6]} 28. Nxa8 {[%clk 0:01:16.1]} 28... Rxa8 {[%clk 0:01:14.5]} 29.
Rxa7 {[%clk 0:01:11.6]} 29... Rxa7 {[%clk 0:01:12.2]} 30. Nc8+ {[%clk
0:01:11.6]} 30... Kd8 {[%clk 0:01:07.5]} 31. Nxa7 {[%clk 0:01:12.5]} 31... fxe5
{[%clk 0:01:06.9]} 32. fxe5 {[%clk 0:01:12.5]} 32... Bc6 {[%clk 0:01:04.2]} 33.
Nxc6+ {[%clk 0:01:04.2]} 33... dxc6 {[%clk 0:01:05.1]} 34. Ke3 {[%clk
0:01:04.7]} 34... Ke7 {[%clk 0:00:57]} 35. Kf4 {[%clk 0:01:05.6]} 35... Kf7
{[%clk 0:00:49.3]} 36. Kg5 {[%clk 0:01:06.5]} 36... Kg7 {[%clk 0:00:49.1]} 37.
h4 {[%clk 0:01:06.3]} 37... b5 {[%clk 0:00:41.7]} 38. Kf4 {[%clk 0:01:05.6]}
38... Kh6 {[%clk 0:00:32.1]} 39. Ke4 {[%clk 0:01:02.7]} 39... g5 {[%clk
0:00:30.8]} 40. Kf3 {[%clk 0:00:55.5]} 40... Kg6 {[%clk 0:00:25.6]} 41. Ke4
{[%clk 0:00:55.1]} 41... c4 {[%clk 0:00:19.3]} 42. dxc4 {[%clk 0:00:54.9]} 42...
bxc4 {[%clk 0:00:20.2]} 43. Kd4 {[%clk 0:00:53]} 43... gxh4 {[%clk 0:00:20.3]}
44. gxh4 {[%clk 0:00:52.4]} 44... Kf5 {[%clk 0:00:21]} 45. Kxc4 {[%clk 0:00:53]}
45... Kxe5 {[%clk 0:00:20.7]} 46. Kc5 {[%clk 0:00:53.9]} 46... Kf5 {[%clk
0:00:16.5]} 47. Kxc6 {[%clk 0:00:52.8]} 47... e5 {[%clk 0:00:17.4]} 48. b4
{[%clk 0:00:53.2]} 48... e4 {[%clk 0:00:17.8]} 49. b5 {[%clk 0:00:54.1]} 49...
e3 {[%clk 0:00:18.7]} 50. b6 {[%clk 0:00:55]} 50... e2 {[%clk 0:00:19.6]} 51. b7
{[%clk 0:00:55.9]} 51... e1=Q {[%clk 0:00:20.5]} 52. b8=Q {[%clk 0:00:55.8]}
52... Qe4+ {[%clk 0:00:20.5]} 53. Kc5 {[%clk 0:00:51.8]} 53... Qxh4 {[%clk
0:00:18.5]} 54. Qf8+ {[%clk 0:00:47.9]} 54... Kg4 {[%clk 0:00:15.2]} 55. Qc8+
{[%clk 0:00:45.2]} 55... Kg3 {[%clk 0:00:15.4]} 56. Qc7+ {[%clk 0:00:40.9]}
56... Qf4 {[%clk 0:00:15.5]} 57. Qg7+ {[%clk 0:00:40.2]} 57... Kf3 {[%clk
0:00:12.7]} 58. Qc3+ {[%clk 0:00:39.7]} 58... Qe3+ {[%clk 0:00:12.7]} 59. Qxe3+
{[%clk 0:00:36.7]} 59... Kxe3 {[%clk 0:00:13.6]} 0-1

[Event "*** Titled Tuesday Blitz"]
[Site "Chess.com"]
[Date "2021.04.20"]
[Round "8"]
[White "MerryPoppies"]
[Black "GMJustin"]
[Result "0-1"]
[WhiteElo "2130"]
[BlackElo "2302"]
[TimeControl "180+1"]
[EndTime "11:27:16 PDT"]
[Termination "GMJustin won by resignation"]

1. d4 {[%clk 0:03:00.9]} 1... Nf6 {[%clk 0:02:39.6]} 2. c4 {[%clk 0:03:00.8]}
2... c5 {[%clk 0:02:34.8]} 3. e3 {[%clk 0:02:53.7]} 3... cxd4 {[%clk 0:02:28.5]}
4. exd4 {[%clk 0:02:53.7]} 4... d5 {[%clk 0:02:29.1]} 5. Nf3 {[%clk 0:02:53.1]}
5... e6 {[%clk 0:02:08.2]} 6. Nc3 {[%clk 0:02:52.8]} 6... Bb4 {[%clk 0:02:04.6]}
7. Qc2 {[%clk 0:02:48.5]} 7... O-O {[%clk 0:02:00]} 8. Bg5 {[%clk 0:02:46.9]}
8... h6 {[%clk 0:01:51.4]} 9. Bh4 {[%clk 0:02:41.9]} 9... Nc6 {[%clk 0:01:32.4]}
10. c5 {[%clk 0:02:27.2]} 10... g5 {[%clk 0:01:21.2]} 11. Bg3 {[%clk 0:02:27.1]}
11... g4 {[%clk 0:01:17.4]} 12. O-O-O {[%clk 0:01:54.3]} 12... gxf3 {[%clk
0:01:06.3]} 13. gxf3 {[%clk 0:01:55.2]} 13... Nh5 {[%clk 0:00:33.1]} 14. Bd6
{[%clk 0:01:39.4]} 14... Kh8 {[%clk 0:00:27.6]} 15. Rg1 {[%clk 0:01:07.4]} 15...
Rg8 {[%clk 0:00:21]} 16. Bd3 {[%clk 0:01:07.1]} 16... Rxg1 {[%clk 0:00:15.1]}
17. Rxg1 {[%clk 0:01:07]} 17... Qf6 {[%clk 0:00:07.1]} 18. Bh7 {[%clk
0:00:43.8]} 18... Bd7 {[%clk 0:00:07.1]} 19. Bd3 {[%clk 0:00:26]} 19... Nxd4
{[%clk 0:00:06.6]} 20. Qd1 {[%clk 0:00:22.6]} 20... Nxf3 {[%clk 0:00:06.5]} 21.
Rg4 {[%clk 0:00:17.3]} 21... Bxc3 {[%clk 0:00:06.4]} 22. bxc3 {[%clk 0:00:17.2]}
22... Qxc3+ {[%clk 0:00:06.4]} 23. Bc2 {[%clk 0:00:16.4]} 23... Rg8 {[%clk
0:00:04.3]} 24. Rxg8+ {[%clk 0:00:16]} 24... Kxg8 {[%clk 0:00:04.7]} 25. Qe2
{[%clk 0:00:13.5]} 25... Nd4 {[%clk 0:00:04.6]} 26. Qg4+ {[%clk 0:00:13.1]}
26... Ng7 {[%clk 0:00:04.7]} 27. Qd1 {[%clk 0:00:07.5]} 27... Qxc2+ {[%clk
0:00:05]} 28. Qxc2 {[%clk 0:00:07.3]} 28... Nxc2 {[%clk 0:00:05.7]} 29. Kxc2
{[%clk 0:00:08.2]} 29... e5 {[%clk 0:00:06]} 30. Kd3 {[%clk 0:00:08.3]} 30...
Nf5 {[%clk 0:00:06.1]} 31. Bxe5 {[%clk 0:00:08]} 31... Bc6 {[%clk 0:00:06.4]}
32. f4 {[%clk 0:00:07.7]} 32... Kh7 {[%clk 0:00:06.5]} 33. Bb8 {[%clk
0:00:07.9]} 33... Kg6 {[%clk 0:00:06.7]} 34. Bxa7 {[%clk 0:00:07.8]} 34... Nh4
{[%clk 0:00:06.9]} 35. Bb8 {[%clk 0:00:07.5]} 35... Kf5 {[%clk 0:00:07.1]} 36.
Ke3 {[%clk 0:00:07]} 36... Ng2+ {[%clk 0:00:07]} 37. Kf3 {[%clk 0:00:07.2]}
37... d4+ {[%clk 0:00:07.1]} 38. Kf2 {[%clk 0:00:06.9]} 38... Nxf4 {[%clk
0:00:06.8]} 39. h3 {[%clk 0:00:06.7]} 39... Nd3+ {[%clk 0:00:06.9]} 40. Ke2
{[%clk 0:00:05.8]} 40... Nxc5 {[%clk 0:00:07.3]} 41. Bd6 {[%clk 0:00:05.4]}
41... Ne6 {[%clk 0:00:07]} 42. Kd3 {[%clk 0:00:05]} 42... Be4+ {[%clk
0:00:06.5]} 43. Kd2 {[%clk 0:00:03.8]} 43... Bg2 {[%clk 0:00:06.4]} 44. h4
{[%clk 0:00:03.7]} 44... Ke4 {[%clk 0:00:06.7]} 45. Be7 {[%clk 0:00:03.8]} 45...
Nf4 {[%clk 0:00:06.5]} 0-1

[Event "*** Titled Tuesday Blitz"]
[Site "Chess.com"]
[Date "2021.04.20"]
[Round "8"]
[White "Salem-AR"]
[Black "Arystanner"]
[Result "1-0"]
[WhiteElo "2960"]
[BlackElo "2804"]
[TimeControl "180+1"]
[EndTime "11:27:18 PDT"]
[Termination "Salem-AR won on time"]

1. d4 {[%clk 0:02:59.4]} 1... d5 {[%clk 0:02:59.3]} 2. c4 {[%clk 0:02:58.9]}
2... e6 {[%clk 0:02:59.9]} 3. Nc3 {[%clk 0:02:58.9]} 3... Nf6 {[%clk 0:03:00.4]}
4. Nf3 {[%clk 0:02:59.3]} 4... a6 {[%clk 0:03:00.4]} 5. cxd5 {[%clk 0:02:59.2]}
5... exd5 {[%clk 0:03:01.3]} 6. Bg5 {[%clk 0:03:00]} 6... Be6 {[%clk 0:03:01.6]}
7. Bxf6 {[%clk 0:03:00.7]} 7... Qxf6 {[%clk 0:03:02.3]} 8. Qb3 {[%clk
0:03:01.5]} 8... Ra7 {[%clk 0:03:02.4]} 9. g3 {[%clk 0:03:00.3]} 9... Qd8 {[%clk
0:03:01.9]} 10. h4 {[%clk 0:03:00.4]} 10... Be7 {[%clk 0:02:43.5]} 11. Bh3
{[%clk 0:02:59.8]} 11... Bxh3 {[%clk 0:02:43.3]} 12. Rxh3 {[%clk 0:03:00.6]}
12... c6 {[%clk 0:02:43.9]} 13. Kf1 {[%clk 0:02:50.5]} 13... Nd7 {[%clk
0:02:41.7]} 14. g4 {[%clk 0:02:47.1]} 14... O-O {[%clk 0:02:28.7]} 15. g5 {[%clk
0:02:44.3]} 15... Nb6 {[%clk 0:02:14.7]} 16. Kg2 {[%clk 0:02:32.5]} 16... Nc4
{[%clk 0:02:14.1]} 17. Rah1 {[%clk 0:02:23.3]} 17... b5 {[%clk 0:02:11.7]} 18.
Qc2 {[%clk 0:02:21.4]} 18... f5 {[%clk 0:02:05]} 19. b3 {[%clk 0:02:15.6]} 19...
Nd6 {[%clk 0:01:52.3]} 20. Ne5 {[%clk 0:02:15.8]} 20... Rc7 {[%clk 0:01:45.1]}
21. e3 {[%clk 0:02:12.8]} 21... Nf7 {[%clk 0:01:36.9]} 22. Nd3 {[%clk
0:01:42.6]} 22... c5 {[%clk 0:01:23.5]} 23. dxc5 {[%clk 0:01:35.3]} 23... Bxc5
{[%clk 0:01:21.5]} 24. Nf4 {[%clk 0:01:13.7]} 24... Bb4 {[%clk 0:01:03.3]} 25.
Nfxd5 {[%clk 0:01:08]} 25... Bxc3 {[%clk 0:00:54.8]} 26. Rd1 {[%clk 0:00:36.1]}
26... Qa8 {[%clk 0:00:38.8]} 27. e4 {[%clk 0:00:34.5]} 27... Rc5 {[%clk
0:00:35.3]} 28. Rxc3 {[%clk 0:00:32.1]} 28... Rxc3 {[%clk 0:00:33.9]} 29. Qxc3
{[%clk 0:00:27.8]} 29... fxe4 {[%clk 0:00:20.1]} 30. Ne7+ {[%clk 0:00:28.1]}
30... Kh8 {[%clk 0:00:20.5]} 31. Nf5 {[%clk 0:00:29]} 31... Rg8 {[%clk
0:00:15.4]} 32. Rd7 {[%clk 0:00:25]} 32... e3+ {[%clk 0:00:15.9]} 33. f3 {[%clk
0:00:25.4]} 33... Qf8 {[%clk 0:00:13.6]} 34. Qxe3 {[%clk 0:00:19.9]} 34... h6
{[%clk 0:00:08.9]} 35. Kf2 {[%clk 0:00:17.3]} 35... Nd8 {[%clk 0:00:05.8]} 36.
Ne7 {[%clk 0:00:16.6]} 36... Qf7 {[%clk 0:00:05.7]} 37. Qe4 {[%clk 0:00:14.7]}
37... Re8 {[%clk 0:00:05.2]} 38. Ng6+ {[%clk 0:00:13.9]} 38... Kh7 {[%clk
0:00:05.7]} 39. Ne5+ {[%clk 0:00:13.7]} 1-0

[Event "*** Titled Tuesday Blitz"]
[Site "Chess.com"]
[Date "2021.04.20"]
[Round "8"]
[White "lamomiablanca"]
[Black "shineatchess"]
[Result "1/2-1/2"]
[WhiteElo "2400"]
[BlackElo "2240"]
[TimeControl "180+1"]
[EndTime "11:27:18 PDT"]
[Termination "Game drawn by repetition"]

1. e4 {[%clk 0:03:00.9]} 1... c6 {[%clk 0:02:59.9]} 2. d4 {[%clk 0:03:00.2]}
2... d5 {[%clk 0:03:00.2]} 3. Nc3 {[%clk 0:03:00.6]} 3... dxe4 {[%clk
0:02:59.7]} 4. Nxe4 {[%clk 0:03:01.5]} 4... Nf6 {[%clk 0:03:00]} 5. Nxf6+ {[%clk
0:03:01.8]} 5... exf6 {[%clk 0:03:00.4]} 6. c3 {[%clk 0:02:59.9]} 6... Bd6
{[%clk 0:03:00.4]} 7. Bd3 {[%clk 0:02:59.2]} 7... O-O {[%clk 0:02:59.9]} 8. Qc2
{[%clk 0:02:59.4]} 8... Re8+ {[%clk 0:02:59.8]} 9. Ne2 {[%clk 0:02:59.4]} 9...
h6 {[%clk 0:02:57.2]} 10. O-O {[%clk 0:02:56.4]} 10... Nd7 {[%clk 0:02:57.4]}
11. h3 {[%clk 0:02:50.7]} 11... Nf8 {[%clk 0:02:55.6]} 12. c4 {[%clk 0:02:49.1]}
12... c5 {[%clk 0:02:49.2]} 13. d5 {[%clk 0:02:47.3]} 13... Qc7 {[%clk
0:02:39.6]} 14. Nc3 {[%clk 0:02:45.6]} 14... a6 {[%clk 0:02:34.8]} 15. Bd2
{[%clk 0:02:39]} 15... Bd7 {[%clk 0:02:30.7]} 16. Rfe1 {[%clk 0:02:20]} 16...
Be5 {[%clk 0:02:26.8]} 17. Ne4 {[%clk 0:01:55.5]} 17... f5 {[%clk 0:02:15.5]}
18. Nc3 {[%clk 0:01:50.3]} 18... f4 {[%clk 0:02:08.4]} 19. Be4 {[%clk
0:01:29.2]} 19... g5 {[%clk 0:01:42]} 20. Bf5 {[%clk 0:01:25]} 20... Kg7 {[%clk
0:01:30.4]} 21. Bxd7 {[%clk 0:01:12.7]} 21... Qxd7 {[%clk 0:01:27.9]} 22. Na4
{[%clk 0:01:06.4]} 22... Qd6 {[%clk 0:01:15.9]} 23. Qf5 {[%clk 0:00:57.8]} 23...
Ng6 {[%clk 0:01:13.8]} 24. Bc3 {[%clk 0:00:40.6]} 24... b5 {[%clk 0:00:42.3]}
25. Bxe5+ {[%clk 0:00:34.5]} 25... Nxe5 {[%clk 0:00:37.6]} 26. cxb5 {[%clk
0:00:29.7]} 26... axb5 {[%clk 0:00:34.8]} 27. Nxc5 {[%clk 0:00:29.2]} 27... Qxd5
{[%clk 0:00:22]} 28. Qc2 {[%clk 0:00:21.2]} 28... Rac8 {[%clk 0:00:19.6]} 29. b4
{[%clk 0:00:21]} 29... f3 {[%clk 0:00:16]} 30. Rad1 {[%clk 0:00:18.3]} 30... Qa8
{[%clk 0:00:12]} 31. Qc3 {[%clk 0:00:17.7]} 31... f6 {[%clk 0:00:10.8]} 32. g3
{[%clk 0:00:15.1]} 32... Nf7 {[%clk 0:00:06.8]} 33. Rxe8 {[%clk 0:00:09.9]}
33... Rxe8 {[%clk 0:00:07.7]} 34. Re1 {[%clk 0:00:06.8]} 34... Rxe1+ {[%clk
0:00:06.1]} 35. Qxe1 {[%clk 0:00:07.7]} 35... Qc8 {[%clk 0:00:04.5]} 36. Qe7
{[%clk 0:00:06.5]} 36... Qxh3 {[%clk 0:00:03.6]} 37. Ne6+ {[%clk 0:00:05.8]}
37... Kg6 {[%clk 0:00:02.3]} 38. Nf8+ {[%clk 0:00:06]} 38... Kg7 {[%clk
0:00:02.6]} 39. Ne6+ {[%clk 0:00:06]} 39... Kg6 {[%clk 0:00:02.9]} 40. Nf8+
{[%clk 0:00:05.8]} 40... Kg7 {[%clk 0:00:03.1]} 41. Ne6+ {[%clk 0:00:06.2]}
1/2-1/2

[Event "*** Titled Tuesday Blitz"]
[Site "Chess.com"]
[Date "2021.04.20"]
[Round "8"]
[White "Qvalda"]
[Black "RamyresCoelho"]
[Result "1-0"]
[WhiteElo "2422"]
[BlackElo "2203"]
[TimeControl "180+1"]
[EndTime "11:27:18 PDT"]
[Termination "Qvalda won by checkmate"]

1. e4 {[%clk 0:03:00.9]} 1... c5 {[%clk 0:02:58.8]} 2. f4 {[%clk 0:02:59.5]}
2... e6 {[%clk 0:02:56]} 3. Nf3 {[%clk 0:02:59]} 3... d5 {[%clk 0:02:55.7]} 4.
Nc3 {[%clk 0:02:57]} 4... d4 {[%clk 0:02:54.2]} 5. Bb5+ {[%clk 0:02:56.6]} 5...
Nd7 {[%clk 0:02:51.3]} 6. Bxd7+ {[%clk 0:02:54.7]} 6... Bxd7 {[%clk 0:02:50.1]}
7. Ne2 {[%clk 0:02:55.6]} 7... Bd6 {[%clk 0:02:46.7]} 8. d3 {[%clk 0:02:54.2]}
8... b6 {[%clk 0:02:43.9]} 9. O-O {[%clk 0:02:54]} 9... h5 {[%clk 0:02:42.2]}
10. c3 {[%clk 0:02:49.4]} 10... dxc3 {[%clk 0:02:38.8]} 11. bxc3 {[%clk
0:02:46.5]} 11... Nh6 {[%clk 0:02:34.9]} 12. d4 {[%clk 0:02:45.1]} 12... cxd4
{[%clk 0:02:32.6]} 13. cxd4 {[%clk 0:02:40.6]} 13... O-O {[%clk 0:02:30.3]} 14.
f5 {[%clk 0:02:23.5]} 14... exf5 {[%clk 0:02:26.5]} 15. e5 {[%clk 0:02:24]}
15... Be7 {[%clk 0:02:20.3]} 16. Bxh6 {[%clk 0:02:23.9]} 16... gxh6 {[%clk
0:02:21.2]} 17. Nf4 {[%clk 0:02:12.3]} 17... h4 {[%clk 0:02:16.2]} 18. d5 {[%clk
0:01:58.4]} 18... Bc5+ {[%clk 0:02:13.3]} 19. Kh1 {[%clk 0:01:54.5]} 19... Bb5
{[%clk 0:02:08.7]} 20. Re1 {[%clk 0:01:38]} 20... Bf2 {[%clk 0:02:07.9]} 21. Qd2
{[%clk 0:01:27.1]} 21... Bxe1 {[%clk 0:02:05.6]} 22. Rxe1 {[%clk 0:01:28]} 22...
Rc8 {[%clk 0:02:02.2]} 23. Nh5 {[%clk 0:01:22.7]} 23... f4 {[%clk 0:01:24.3]}
24. Nf6+ {[%clk 0:01:20.4]} 24... Kg7 {[%clk 0:01:12.2]} 25. Qxf4 {[%clk
0:01:19.8]} 25... Bd3 {[%clk 0:00:57.4]} 26. Nxh4 {[%clk 0:01:03.3]} 26... Rc4
{[%clk 0:00:50.4]} 27. Nf5+ {[%clk 0:01:02.8]} 27... Bxf5 {[%clk 0:00:43.8]} 28.
Qxf5 {[%clk 0:01:03.1]} 28... Rh8 {[%clk 0:00:32.1]} 29. h3 {[%clk 0:00:58.1]}
29... Kf8 {[%clk 0:00:30.2]} 30. e6 {[%clk 0:00:52.9]} 30... Qe7 {[%clk
0:00:20.7]} 31. d6 {[%clk 0:00:36.3]} 31... Qxd6 {[%clk 0:00:06.8]} 32. e7+
{[%clk 0:00:32.3]} 32... Qxe7 {[%clk 0:00:05.6]} 33. Rxe7 {[%clk 0:00:30.6]}
33... Kxe7 {[%clk 0:00:05.6]} 34. Qe5+ {[%clk 0:00:27.7]} 34... Kf8 {[%clk
0:00:04.4]} 35. Nd5 {[%clk 0:00:16.1]} 35... Rh7 {[%clk 0:00:01.3]} 36. Qe7+
{[%clk 0:00:14.9]} 36... Kg7 {[%clk 0:00:02.2]} 37. Qf6+ {[%clk 0:00:15]} 37...
Kg8 {[%clk 0:00:02.4]} 38. Ne7+ {[%clk 0:00:14.2]} 38... Kf8 {[%clk 0:00:02.6]}
39. Nf5 {[%clk 0:00:14.5]} 39... Rc1+ {[%clk 0:00:02.7]} 40. Kh2 {[%clk
0:00:14.3]} 40... Ke8 {[%clk 0:00:03.6]} 41. Qe5+ {[%clk 0:00:11.7]} 41... Kf8
{[%clk 0:00:03.7]} 42. Qb8+ {[%clk 0:00:11]} 42... Rc8 {[%clk 0:00:02.2]} 43.
Qxc8# {[%clk 0:00:11.2]} 1-0

[Event "*** Titled Tuesday Blitz"]
[Site "Chess.com"]
[Date "2021.04.20"]
[Round "8"]
[White "Korchmar_Vasiliy"]
[Black "Igor_Lysyj"]
[Result "1-0"]
[WhiteElo "2662"]
[BlackElo "2760"]
[TimeControl "180+1"]
[EndTime "11:27:21 PDT"]
[Termination "Korchmar_Vasiliy won by resignation"]

1. d4 {[%clk 0:03:00.9]} 1... d5 {[%clk 0:02:52]} 2. Nf3 {[%clk 0:03:01]} 2...
Nf6 {[%clk 0:02:50.8]} 3. Bf4 {[%clk 0:03:01.1]} 3... c5 {[%clk 0:02:46.8]} 4.
e3 {[%clk 0:03:01.4]} 4... Nc6 {[%clk 0:02:44.4]} 5. Nbd2 {[%clk 0:03:01.7]}
5... Bg4 {[%clk 0:02:42.8]} 6. c3 {[%clk 0:03:00.6]} 6... e6 {[%clk 0:02:42.2]}
7. Qa4 {[%clk 0:03:00.5]} 7... Nd7 {[%clk 0:02:37.2]} 8. Ne5 {[%clk 0:02:59.5]}
8... Ndxe5 {[%clk 0:02:34.4]} 9. Bxe5 {[%clk 0:03:00.4]} 9... Qd7 {[%clk
0:02:30.8]} 10. Bb5 {[%clk 0:02:51.1]} 10... cxd4 {[%clk 0:02:18.6]} 11. cxd4
{[%clk 0:02:41.3]} 11... f6 {[%clk 0:02:15.5]} 12. Bg3 {[%clk 0:02:38.9]} 12...
a6 {[%clk 0:02:08.9]} 13. Rc1 {[%clk 0:02:22.3]} 13... Rc8 {[%clk 0:02:08.1]}
14. Bd3 {[%clk 0:02:06.2]} 14... Be7 {[%clk 0:01:51.6]} 15. O-O {[%clk 0:02:06]}
15... O-O {[%clk 0:01:48.9]} 16. Nb3 {[%clk 0:02:02.3]} 16... Bf5 {[%clk
0:01:31.4]} 17. Bxf5 {[%clk 0:01:58.5]} 17... exf5 {[%clk 0:01:30.9]} 18. Nc5
{[%clk 0:01:58.4]} 18... Bxc5 {[%clk 0:01:30.1]} 19. Rxc5 {[%clk 0:01:58.5]}
19... Rcd8 {[%clk 0:01:19.6]} 20. Rfc1 {[%clk 0:01:54.9]} 20... Rfe8 {[%clk
0:01:14.9]} 21. b4 {[%clk 0:01:52.7]} 21... g5 {[%clk 0:01:12.2]} 22. Qb3 {[%clk
0:01:28.3]} 22... Qf7 {[%clk 0:01:10.4]} 23. Qb2 {[%clk 0:00:43.8]} 23... Re4
{[%clk 0:01:04.9]} 24. a4 {[%clk 0:00:33.5]} 24... f4 {[%clk 0:00:58.2]} 25. f3
{[%clk 0:00:34]} 25... Rxe3 {[%clk 0:00:53.9]} 26. Bf2 {[%clk 0:00:34.1]} 26...
Re7 {[%clk 0:00:40.4]} 27. Qd2 {[%clk 0:00:34]} 27... Red7 {[%clk 0:00:31.1]}
28. b5 {[%clk 0:00:33.6]} 28... axb5 {[%clk 0:00:31.1]} 29. axb5 {[%clk
0:00:34.5]} 29... Ne7 {[%clk 0:00:31.1]} 30. Rc7 {[%clk 0:00:29.9]} 30... Nf5
{[%clk 0:00:30.1]} 31. Qa5 {[%clk 0:00:20.9]} 31... Rxc7 {[%clk 0:00:15.8]} 32.
Rxc7 {[%clk 0:00:20.3]} 32... Rd7 {[%clk 0:00:16.1]} 33. b6 {[%clk 0:00:13.6]}
33... Re7 {[%clk 0:00:13.6]} 34. Qa8+ {[%clk 0:00:11.3]} 34... Kg7 {[%clk
0:00:12.9]} 35. Qxb7 {[%clk 0:00:12]} 35... Qe6 {[%clk 0:00:11.3]} 36. Rxe7+
{[%clk 0:00:10.8]} 36... Nxe7 {[%clk 0:00:11]} 37. Qc7 {[%clk 0:00:10]} 37...
Qe2 {[%clk 0:00:11]} 38. h3 {[%clk 0:00:07.3]} 38... Kf7 {[%clk 0:00:06.3]} 39.
b7 {[%clk 0:00:07.2]} 39... Qd1+ {[%clk 0:00:04.7]} 40. Kh2 {[%clk 0:00:07.5]}
40... Qf1 {[%clk 0:00:04.9]} 41. Bg1 {[%clk 0:00:07.5]} 41... Qe1 {[%clk
0:00:01.4]} 42. b8=Q {[%clk 0:00:07.4]} 1-0